[Event "Nové Hrady - Blesk"]
[Site "Nové Hrady, Czech Republic"]
[Date "2023.08.17"]
[Round "6.5"]
[White "Valenz, Miroslav"]
[Black "Steinbauer, Sebastian"]
[Result "0-1"]
[TimeControl "2x3+2s"]
[WhiteFideId "326283"]
[BlackFideId "399272"]
[WhiteElo "1929"]
[BlackElo "1660"]

1. e4 {[%clk 00:03:02]} {[%emt 00:00:02]} e5 {[%clk 00:03:03]} 2. Nc3 {[%clk
00:03:03]} Nf6 {[%clk 00:03:04]} 3. Bc4 {[%clk 00:03:05]} Bc5 {[%clk 00:03:04]}
{[%emt 00:00:06]} 4. d3 {[%clk 00:03:06]} Nc6 {[%clk 00:03:05]} {[%emt
00:00:02]} 5. f4 {[%clk 00:03:07]} d6 {[%clk 00:03:00]} {[%emt 00:00:08]} 6.
Nf3 {[%clk 00:03:07]} {[%emt 00:00:02]} Bg4 {[%clk 00:02:49]} {[%emt 00:00:12]}
7. Na4 {[%clk 00:02:56]} {[%emt 00:00:13]} Bb4+ {[%clk 00:02:42]} {[%emt
00:00:09]} 8. Bd2 {[%clk 00:02:35]} {[%emt 00:00:23]} Bxd2+ {[%clk 00:02:42]} 9.
Qxd2 {[%clk 00:02:36]} Bxf3 {[%clk 00:02:43]} {[%emt 00:00:03]} 10. gxf3 {[%clk
00:02:37]} Nd4 {[%clk 00:02:40]} {[%emt 00:00:06]} 11. O-O-O {[%clk 00:02:15]}
{[%emt 00:00:24]} Qd7 {[%clk 00:02:24]} {[%emt 00:00:17]} 12. Nc3 {[%clk
00:02:03]} {[%emt 00:00:14]} exf4 {[%clk 00:02:15]} {[%emt 00:00:12]} 13. Qxf4
{[%clk 00:01:45]} {[%emt 00:00:20]} O-O-O {[%clk 00:01:50]} {[%emt 00:00:27]}
14. Kb1 {[%clk 00:01:45]} {[%emt 00:00:03]} Ne6 {[%clk 00:01:42]} {[%emt
00:00:09]} 15. Qe3 {[%clk 00:01:39]} {[%emt 00:00:08]} c5 {[%clk 00:01:24]}
{[%emt 00:00:21]} 16. f4 {[%clk 00:01:39]} Nc7 {[%clk 00:01:10]} {[%emt
00:00:16]} 17. Rhg1 {[%clk 00:01:39]} g6 {[%clk 00:00:42]} {[%emt 00:00:31]} 18.
e5 {[%clk 00:01:40]} Nfe8 {[%clk 00:00:36]} {[%emt 00:00:08]} 19. d4 {[%clk
00:01:28]} {[%emt 00:00:15]} d5 {[%clk 00:00:28]} {[%emt 00:00:10]} 20. Be2
{[%clk 00:01:19]} {[%emt 00:00:10]} cxd4 {[%clk 00:00:23]} {[%emt 00:00:06]} 21.
Rxd4 {[%clk 00:01:20]} {[%emt 00:00:02]} Kb8 {[%clk 00:00:15]} {[%emt
00:00:11]} 22. Bf3 {[%clk 00:01:08]} {[%emt 00:00:13]} Ng7 {[%clk 00:00:13]}
{[%emt 00:00:04]} 23. Bg4 {[%clk 00:01:02]} {[%emt 00:00:08]} Nf5 {[%clk
00:00:13]} {[%emt 00:00:02]} 24. Bxf5 {[%clk 00:01:03]} gxf5 {[%clk 00:00:11]}
{[%emt 00:00:05]} 25. Ra4 {[%clk 00:01:04]} {[%emt 00:00:01]} d4 {[%clk
00:00:09]} {[%emt 00:00:04]} 26. Qf2 {[%clk 00:00:57]} {[%emt 00:00:09]} dxc3
{[%clk 00:00:09]} {[%emt 00:00:03]} 27. Qxa7+ {[%clk 00:00:57]} {[%emt
00:00:02]} Kc8 {[%clk 00:00:10]} 28. bxc3 {[%clk 00:00:54]} {[%emt 00:00:05]}
Qb5+ {[%clk 00:00:11]} 29. Rb4 {[%clk 00:00:53]} {[%emt 00:00:03]} Qa6 {[%clk
00:00:10]} {[%emt 00:00:03]} 30. Qc5 {[%clk 00:00:49]} {[%emt 00:00:07]} Rhg8
{[%clk 00:00:09]} {[%emt 00:00:03]} 31. Rxg8 {[%clk 00:00:45]} {[%emt
00:00:05]} Rxg8 {[%clk 00:00:10]} 32. Qe7 {[%clk 00:00:39]} {[%emt 00:00:09]}
Qa3 {[%clk 00:00:06]} {[%emt 00:00:07]} 33. Qg5 {[%clk 00:00:04]} {[%emt
00:00:37]} Rxg5 34. fxg5 Qa5 {[%clk 00:00:05]} {[%emt 00:00:04]} 35. Kb2 {[%clk
00:00:07]} Qxe5 {[%clk 00:00:06]} 36. a4 {[%clk 00:00:08]} {[%emt 00:00:02]}
Qg7 {[%clk 00:00:06]} 37. a5 {[%clk 00:00:09]} Qxg5 {[%clk 00:00:07]} 38. a6
{[%clk 00:00:10]} Nxa6 {[%clk 00:00:08]} 39. Rc4+ {[%clk 00:00:12]} Kb8 {[%clk
00:00:09]} 40. Rd4 {[%clk 00:00:12]} {[%emt 00:00:07]} Qf6 {[%clk 00:00:10]} 41.
Rc4 {[%clk 00:00:12]} {[%emt 00:00:02]} Qb6+ {[%clk 00:00:11]} 42. Kc1 {[%clk
00:00:13]} Qg1+ {[%clk 00:00:11]} {[%emt 00:00:02]} 43. Kd2 {[%clk 00:00:14]}
Qxh2+ {[%clk 00:00:12]} 44. Ke3 {[%clk 00:00:15]} {[%emt 00:00:03]} Qg1+ {[%clk
00:00:13]} 45. Kd3 {[%clk 00:00:16]} Qg3+ {[%emt 00:00:04]} 46. Kd4 Qf4+ {[%clk
00:00:14]} {[%emt 00:00:02]} 47. Kd3 {[%clk 00:00:18]} Qe4+ {[%clk 00:00:15]}
48. Kd2 {[%clk 00:00:19]} Qd5+ {[%clk 00:00:15]} {[%emt 00:00:05]} 49. Rd4
{[%clk 00:00:20]} {[%emt 00:00:02]} Qxd4+ {[%clk 00:00:16]} 50. cxd4 {[%clk
00:00:21]} Nc7 {[%clk 00:00:17]} 51. Ke3 {[%clk 00:00:22]} Nd5+ {[%clk
00:00:19]} 0-1

[Event "Nové Hrady - Blesk"]
[Site "Nové Hrady, Czech Republic"]
[Date "2023.08.17"]
[Round "6.6"]
[White "Babula, Milan"]
[Black "Sadil, Antonin"]
[Result "1/2-1/2"]
[TimeControl "2x3+2s"]
[WhiteFideId "300632"]
[BlackFideId "23735597"]
[WhiteElo "2176"]
[BlackElo "1697"]

1. e4 {[%clk 00:03:03]} {[%emt 00:00:14]} c6 {[%clk 00:03:02]} {[%emt
00:00:02]} 2. d4 {[%clk 00:03:04]} {[%emt 00:00:02]} d5 {[%clk 00:03:03]}
{[%emt 00:00:01]} 3. Nc3 {[%clk 00:03:05]} dxe4 {[%clk 00:03:02]} {[%emt
00:00:04]} 4. Nxe4 {[%clk 00:03:06]} Nf6 {[%clk 00:03:02]} {[%emt 00:00:02]} 5.
Nxf6+ {[%clk 00:03:06]} exf6 {[%clk 00:03:03]} 6. Bf4 {[%clk 00:02:59]} {[%emt
00:00:11]} Bd6 {[%clk 00:03:02]} {[%emt 00:00:04]} 7. Bxd6 {[%clk 00:02:55]}
{[%emt 00:00:07]} Qxd6 {[%clk 00:03:01]} {[%emt 00:00:02]} 8. Qd2 {[%clk
00:02:55]} {[%emt 00:00:02]} Be6 {[%clk 00:02:59]} {[%emt 00:00:04]} 9. Nf3
{[%clk 00:02:52]} {[%emt 00:00:06]} Nd7 {[%clk 00:02:58]} {[%emt 00:00:03]} 10.
c4 {[%clk 00:02:45]} {[%emt 00:00:08]} O-O {[%clk 00:02:53]} {[%emt 00:00:07]}
11. Be2 {[%clk 00:02:32]} {[%emt 00:00:16]} Rfe8 {[%clk 00:02:46]} {[%emt
00:00:09]} 12. O-O {[%clk 00:02:32]} {[%emt 00:00:02]} Rad8 {[%clk 00:02:31]}
{[%emt 00:00:16]} 13. Rad1 {[%clk 00:02:31]} {[%emt 00:00:03]} Nf8 {[%clk
00:02:28]} {[%emt 00:00:05]} 14. Rfe1 {[%clk 00:02:20]} {[%emt 00:00:13]} Ng6
{[%clk 00:02:28]} {[%emt 00:00:03]} 15. g3 {[%clk 00:02:00]} {[%emt 00:00:21]}
Bg4 {[%clk 00:02:07]} {[%emt 00:00:23]} 16. Kg2 {[%clk 00:02:00]} {[%emt
00:00:02]} b5 {[%clk 00:01:41]} {[%emt 00:00:29]} 17. b3 {[%clk 00:01:54]}
{[%emt 00:00:08]} bxc4 {[%clk 00:01:28]} {[%emt 00:00:14]} 18. bxc4 {[%clk
00:01:56]} Re4 {[%clk 00:01:26]} {[%emt 00:00:05]} 19. h3 {[%clk 00:01:05]}
{[%emt 00:00:52]} Bxf3+ {[%clk 00:01:10]} {[%emt 00:00:17]} 20. Bxf3 {[%clk
00:01:07]} Rxd4 {[%clk 00:00:55]} {[%emt 00:00:19]} 21. Qxd4 {[%clk 00:01:07]}
{[%emt 00:00:02]} Qxd4 {[%clk 00:00:55]} {[%emt 00:00:02]} 22. Rxd4 {[%clk
00:00:50]} {[%emt 00:00:20]} Rxd4 {[%clk 00:00:55]} 23. Re8+ {[%clk 00:00:48]}
{[%emt 00:00:04]} Nf8 {[%clk 00:00:56]} 24. Bxc6 {[%clk 00:00:42]} {[%emt
00:00:09]} Rxc4 {[%emt 00:00:10]} 25. Bd5 {[%emt 00:00:01]} Rc7 {[%clk
00:00:47]} {[%emt 00:00:03]} 26. Kf3 {[%clk 00:00:41]} {[%emt 00:00:04]} g6
{[%clk 00:00:47]} {[%emt 00:00:02]} 27. Ke4 {[%clk 00:00:35]} {[%emt 00:00:08]}
Kg7 {[%clk 00:00:47]} {[%emt 00:00:03]} 28. f4 {[%clk 00:00:33]} {[%emt
00:00:04]} Nd7 {[%clk 00:00:37]} {[%emt 00:00:12]} 29. Kd4 {[%clk 00:00:33]}
{[%emt 00:00:02]} Nb6 {[%clk 00:00:37]} {[%emt 00:00:02]} 30. Bb3 {[%clk
00:00:31]} {[%emt 00:00:04]} Rd7+ {[%clk 00:00:36]} {[%emt 00:00:03]} 31. Kc3
{[%clk 00:00:29]} {[%emt 00:00:04]} Nd5+ {[%clk 00:00:33]} {[%emt 00:00:05]} 32.
Kc4 {[%clk 00:00:28]} {[%emt 00:00:03]} Nc7 {[%clk 00:00:33]} {[%emt 00:00:02]}
33. Rc8 {[%clk 00:00:25]} {[%emt 00:00:04]} Ne6 {[%clk 00:00:33]} {[%emt
00:00:02]} 34. Kb5 {[%clk 00:00:26]} {[%emt 00:00:02]} Nd4+ {[%clk 00:00:32]}
{[%emt 00:00:03]} 35. Ka6 {[%clk 00:00:27]} {[%emt 00:00:01]} Nxb3 {[%clk
00:00:33]} 36. axb3 {[%clk 00:00:28]} Rd3 {[%clk 00:00:34]} {[%emt 00:00:03]}
37. b4 {[%clk 00:00:29]} {[%emt 00:00:02]} Rb3 {[%clk 00:00:32]} {[%emt
00:00:03]} 38. b5 {[%clk 00:00:29]} {[%emt 00:00:02]} g5 {[%clk 00:00:28]}
{[%emt 00:00:06]} 39. Rc7 {[%clk 00:00:27]} {[%emt 00:00:04]} Kg6 {[%clk
00:00:25]} {[%emt 00:00:04]} 40. Rxa7 {[%clk 00:00:27]} {[%emt 00:00:02]} h5
{[%clk 00:00:19]} {[%emt 00:00:08]} 41. b6 {[%clk 00:00:28]} Ra3+ {[%clk
00:00:19]} {[%emt 00:00:03]} 42. Kb7 {[%clk 00:00:29]} {[%emt 00:00:01]} Rb3
{[%clk 00:00:20]} {[%emt 00:00:02]} 43. Kc7 {[%clk 00:00:30]} gxf4 {[%clk
00:00:18]} {[%emt 00:00:04]} 44. gxf4 {[%clk 00:00:31]} Rxh3 {[%clk 00:00:17]}
{[%emt 00:00:03]} 45. b7 {[%clk 00:00:29]} {[%emt 00:00:04]} Rc3+ {[%clk
00:00:18]} {[%emt 00:00:02]} 46. Kd7 {[%clk 00:00:27]} {[%emt 00:00:04]} Rb3
{[%clk 00:00:17]} {[%emt 00:00:03]} 47. Kc8 {[%clk 00:00:27]} {[%emt 00:00:02]}
Rc3+ {[%clk 00:00:16]} {[%emt 00:00:02]} 48. Kd8 {[%clk 00:00:27]} {[%emt
00:00:02]} Rd3+ {[%clk 00:00:16]} {[%emt 00:00:01]} 49. Kc7 {[%clk 00:00:29]}
Rc3+ {[%clk 00:00:17]} {[%emt 00:00:03]} 50. Kd7 {[%clk 00:00:28]} {[%emt
00:00:02]} 1/2-1/2

[Event "Nové Hrady - Blesk"]
[Site "Nové Hrady, Czech Republic"]
[Date "2023.08.17"]
[Round "6.7"]
[White "Slabý, Matěj"]
[Black "Garabik, Marek"]
[Result "1-0"]
[TimeControl "2x3+2s"]
[WhiteFideId "23734876"]
[BlackFideId "23717742"]
[WhiteElo "1894"]
[BlackElo "1578"]

1. e4 {[%clk 00:03:02]} {[%emt 00:00:02]} e6 {[%clk 00:03:03]} 2. d4 {[%clk
00:03:00]} {[%emt 00:00:02]} d5 {[%clk 00:03:04]} {[%emt 00:00:03]} 3. e5
{[%clk 00:03:02]} {[%emt 00:00:01]} c5 {[%clk 00:03:05]} 4. c3 {[%clk
00:03:02]} {[%emt 00:00:02]} Nc6 {[%clk 00:03:06]} 5. Nf3 {[%clk 00:03:03]} Qb6
{[%clk 00:03:08]} 6. a3 {[%clk 00:03:02]} {[%emt 00:00:06]} cxd4 {[%clk
00:03:07]} {[%emt 00:00:03]} 7. cxd4 {[%clk 00:03:03]} Bd7 {[%clk 00:03:08]} 8.
Nc3 {[%clk 00:03:04]} {[%emt 00:00:03]} Nge7 {[%clk 00:03:08]} 9. b4 {[%clk
00:02:59]} {[%emt 00:00:08]} Nf5 {[%clk 00:03:06]} {[%emt 00:00:04]} 10. Na4
{[%clk 00:02:53]} {[%emt 00:00:09]} Qc7 {[%clk 00:03:01]} {[%emt 00:00:06]} 11.
Be3 {[%clk 00:02:45]} {[%emt 00:00:11]} Be7 {[%clk 00:02:42]} {[%emt 00:00:20]}
12. Bd3 {[%clk 00:02:46]} Nxe3 {[%clk 00:02:39]} {[%emt 00:00:05]} 13. fxe3
{[%clk 00:02:47]} O-O {[%clk 00:02:27]} {[%emt 00:00:15]} 14. O-O {[%clk
00:02:46]} {[%emt 00:00:03]} f6 {[%clk 00:02:28]} 15. exf6 {[%clk 00:02:40]}
{[%emt 00:00:09]} Bxf6 {[%clk 00:02:29]} 16. Rc1 {[%clk 00:02:41]} a6 {[%clk
00:02:23]} {[%emt 00:00:09]} 17. Nc5 {[%clk 00:02:39]} {[%emt 00:00:06]} e5
{[%clk 00:02:07]} {[%emt 00:00:17]} 18. dxe5 {[%clk 00:02:36]} {[%emt
00:00:05]} Bxe5 {[%clk 00:02:03]} {[%emt 00:00:06]} 19. Nxe5 {[%clk 00:02:31]}
{[%emt 00:00:08]} Nxe5 {[%clk 00:02:03]} 20. Rxf8+ {[%clk 00:02:23]} {[%emt
00:00:11]} Rxf8 {[%clk 00:02:03]} {[%emt 00:00:02]} 21. Be2 {[%clk 00:02:10]}
{[%emt 00:00:15]} Qc6 {[%clk 00:01:37]} {[%emt 00:00:28]} 22. Nxa6 {[%emt
00:00:11]} Qf6 {[%clk 00:01:19]} {[%emt 00:00:19]} 23. Nc5 {[%clk 00:01:52]}
{[%emt 00:00:13]} Qf2+ {[%clk 00:00:58]} {[%emt 00:00:23]} 24. Kh1 {[%clk
00:01:53]} Bc6 {[%clk 00:00:58]} {[%emt 00:00:02]} 25. b5 {[%clk 00:01:45]}
{[%emt 00:00:10]} Bxb5 {[%clk 00:00:30]} {[%emt 00:00:29]} 26. Bxb5 {[%clk
00:01:37]} {[%emt 00:00:11]} Ng4 {[%clk 00:00:12]} {[%emt 00:00:20]} 27. Qxg4
{[%clk 00:01:31]} {[%emt 00:00:09]} Qxe3 {[%clk 00:00:10]} {[%emt 00:00:02]} 28.
Qe6+ {[%clk 00:01:30]} {[%emt 00:00:04]} Qxe6 {[%clk 00:00:10]} {[%emt
00:00:02]} 29. Nxe6 {[%clk 00:01:31]} Rf2 {[%clk 00:00:10]} {[%emt 00:00:03]}
30. Rf1 {[%clk 00:01:25]} {[%emt 00:00:08]} 1-0

[Event "Nové Hrady - Blesk"]
[Site "Nové Hrady, Czech Republic"]
[Date "2023.08.17"]
[Round "6.9"]
[White "Rausch, Rudolf"]
[Black "Hokr, Matyas"]
[Result "1/2-1/2"]
[TimeControl "2x3+2s"]
[WhiteFideId "1639455"]
[BlackFideId "23734663"]
[WhiteElo "1806"]
[BlackElo "1472"]

1. d4 {[%clk 00:03:00]} {[%emt 00:00:04]} c5 {[%clk 00:03:03]} 2. e3 {[%clk
00:02:59]} {[%emt 00:00:02]} cxd4 {[%clk 00:03:04]} 3. exd4 {[%clk 00:03:01]}
d5 {[%clk 00:03:05]} 4. Nc3 {[%clk 00:03:01]} {[%emt 00:00:05]} Nc6 {[%clk
00:03:06]} 5. Nf3 {[%clk 00:03:01]} {[%emt 00:00:03]} Bf5 {[%clk 00:03:07]}
{[%emt 00:00:01]} 6. Bd3 {[%clk 00:03:01]} {[%emt 00:00:02]} Bxd3 {[%clk
00:03:07]} {[%emt 00:00:02]} 7. Qxd3 {[%clk 00:03:02]} Nf6 {[%clk 00:03:08]}
{[%emt 00:00:02]} 8. Bg5 {[%clk 00:03:01]} {[%emt 00:00:03]} e6 {[%clk
00:03:09]} {[%emt 00:00:01]} 9. O-O {[%clk 00:02:59]} {[%emt 00:00:05]} Bd6
{[%clk 00:03:09]} {[%emt 00:00:01]} 10. Nb5 {[%clk 00:02:51]} {[%emt 00:00:10]}
h6 {[%clk 00:02:59]} {[%emt 00:00:13]} 11. Nxd6+ {[%clk 00:02:50]} {[%emt
00:00:02]} Qxd6 {[%clk 00:02:59]} 12. Bh4 {[%clk 00:02:38]} {[%emt 00:00:15]}
g5 {[%clk 00:03:00]} 13. Bg3 Qd7 {[%emt 00:00:03]} 14. Ne5 {[%clk 00:02:35]}
{[%emt 00:00:05]} Nxe5 {[%clk 00:02:58]} {[%emt 00:00:05]} 15. Bxe5 {[%clk
00:02:34]} {[%emt 00:00:03]} Qe7 {[%clk 00:02:56]} {[%emt 00:00:04]} 16. Qb5+
{[%clk 00:02:32]} {[%emt 00:00:04]} Kf8 {[%clk 00:02:47]} {[%emt 00:00:11]} 17.
Bxf6 {[%clk 00:02:26]} {[%emt 00:00:08]} Qxf6 {[%clk 00:02:47]} {[%emt
00:00:02]} 18. Qxb7 {[%clk 00:02:25]} {[%emt 00:00:02]} Kg7 {[%clk 00:02:47]}
{[%emt 00:00:02]} 19. Rae1 {[%clk 00:02:00]} {[%emt 00:00:27]} Rhb8 {[%clk
00:02:44]} {[%emt 00:00:07]} 20. Qc6 {[%clk 00:01:48]} {[%emt 00:00:13]} Rc8
{[%clk 00:02:45]} 21. Qd7 {[%clk 00:01:34]} {[%emt 00:00:16]} Rxc2 {[%clk
00:02:43]} {[%emt 00:00:05]} 22. Qb7 {[%clk 00:01:24]} {[%emt 00:00:11]} Rcc8
{[%clk 00:02:41]} {[%emt 00:00:04]} 23. a4 {[%clk 00:01:24]} {[%emt 00:00:02]}
Rcb8 {[%clk 00:02:42]} {[%emt 00:00:02]} 24. Qd7 {[%clk 00:01:24]} Rd8 {[%clk
00:02:42]} 25. Qc6 {[%clk 00:01:25]} {[%emt 00:00:04]} Rdc8 {[%clk 00:02:43]}
{[%emt 00:00:02]} 26. Qb7 {[%clk 00:01:20]} {[%emt 00:00:06]} Rcb8 {[%clk
00:02:43]} {[%emt 00:00:02]} 27. Qc6 {[%clk 00:01:21]} Rc8 {[%clk 00:02:44]} 28.
Qb7 {[%clk 00:01:20]} {[%emt 00:00:03]} Rcb8 {[%clk 00:02:45]} 29. Qc6 {[%clk
00:01:16]} {[%emt 00:00:08]} Rc8 {[%clk 00:02:46]} 1/2-1/2

[Event "Nové Hrady - Blesk"]
[Site "Nové Hrady, Czech Republic"]
[Date "2023.08.17"]
[Round "6.10"]
[White "Papacek, Stepan"]
[Black "Hejda, Ondřej"]
[Result "1-0"]
[TimeControl "2x3+2s"]
[WhiteFideId "301035"]
[BlackFideId "23713623"]
[WhiteElo "2137"]
[BlackElo "1321"]

1. e4 {[%clk 00:03:01]} {[%emt 00:00:02]} d5 {[%clk 00:03:03]} {[%emt
00:00:02]} 2. exd5 {[%clk 00:03:01]} Qxd5 {[%clk 00:03:03]} {[%emt 00:00:02]} 3.
Nc3 {[%clk 00:03:02]} Qa5 {[%clk 00:03:04]} {[%emt 00:00:03]} 4. Nf3 {[%clk
00:03:02]} {[%emt 00:00:02]} c6 {[%clk 00:03:04]} {[%emt 00:00:03]} 5. d4
{[%clk 00:02:53]} {[%emt 00:00:10]} Bg4 {[%clk 00:03:02]} {[%emt 00:00:04]} 6.
h3 {[%clk 00:02:43]} {[%emt 00:00:12]} Bh5 {[%clk 00:03:00]} {[%emt 00:00:03]}
7. g4 {[%clk 00:02:21]} {[%emt 00:00:25]} Bg6 {[%clk 00:03:01]} {[%emt
00:00:02]} 8. Ne5 {[%clk 00:02:20]} {[%emt 00:00:02]} e6 {[%clk 00:02:44]}
{[%emt 00:00:18]} 9. Bg2 {[%clk 00:02:13]} {[%emt 00:00:10]} Bd6 {[%clk
00:02:38]} {[%emt 00:00:08]} 10. Nc4 {[%clk 00:02:11]} {[%emt 00:00:04]} Qc7
{[%clk 00:02:35]} {[%emt 00:00:06]} 11. Nxd6+ {[%clk 00:02:09]} {[%emt
00:00:03]} Qxd6 {[%clk 00:02:35]} {[%emt 00:00:02]} 12. Be3 {[%clk 00:02:06]}
{[%emt 00:00:05]} Nf6 {[%clk 00:02:30]} {[%emt 00:00:07]} 13. Qe2 {[%clk
00:02:00]} {[%emt 00:00:08]} Nbd7 {[%clk 00:02:23]} {[%emt 00:00:10]} 14. O-O-O
{[%clk 00:01:58]} {[%emt 00:00:03]} O-O-O {[%clk 00:02:04]} {[%emt 00:00:21]}
15. Kb1 {[%clk 00:01:52]} {[%emt 00:00:08]} Nb6 {[%clk 00:01:54]} {[%emt
00:00:12]} 16. Rd2 {[%clk 00:01:33]} {[%emt 00:00:21]} Nfd5 {[%clk 00:01:47]}
{[%emt 00:00:10]} 17. Ne4 {[%clk 00:01:29]} {[%emt 00:00:05]} Bxe4 {[%clk
00:01:29]} {[%emt 00:00:20]} 18. Bxe4 {[%clk 00:01:30]} Nxe3 {[%clk 00:01:24]}
{[%emt 00:00:08]} 19. fxe3 {[%clk 00:01:29]} {[%emt 00:00:03]} h6 {[%clk
00:01:20]} {[%emt 00:00:06]} 20. Bg2 {[%clk 00:01:19]} {[%emt 00:00:12]} Rhe8
{[%clk 00:01:19]} {[%emt 00:00:02]} 21. c4 {[%clk 00:01:06]} {[%emt 00:00:16]}
Qd7 {[%clk 00:01:05]} {[%emt 00:00:17]} 22. Rc1 {[%clk 00:00:58]} {[%emt
00:00:09]} Kb8 {[%clk 00:00:55]} {[%emt 00:00:12]} 23. c5 {[%clk 00:00:54]}
{[%emt 00:00:06]} Nd5 {[%clk 00:00:54]} {[%emt 00:00:03]} 24. Rd3 {[%clk
00:00:41]} {[%emt 00:00:15]} Nf6 {[%clk 00:00:49]} {[%emt 00:00:07]} 25. Rb3
{[%clk 00:00:36]} {[%emt 00:00:07]} e5 {[%clk 00:00:40]} {[%emt 00:00:11]} 26.
Qf3 {[%clk 00:00:33]} {[%emt 00:00:04]} exd4 {[%clk 00:00:36]} {[%emt
00:00:07]} 27. exd4 {[%clk 00:00:34]} Qe7 {[%clk 00:00:21]} {[%emt 00:00:19]}
28. Qxc6 {[%clk 00:00:30]} {[%emt 00:00:05]} Qe4+ {[%clk 00:00:15]} {[%emt
00:00:08]} 29. Bxe4 {[%clk 00:00:30]} {[%emt 00:00:02]} 1-0

[Event "Nové Hrady - Blesk"]
[Site "Nové Hrady, Czech Republic"]
[Date "2023.08.17"]
[Round "7.1"]
[White "Hostička, František"]
[Black "Pulpan, Jakub"]
[Result "0-1"]
[TimeControl "2x3+2s"]
[WhiteFideId "302295"]
[BlackFideId "302759"]
[WhiteElo "2074"]
[BlackElo "2452"]

1. e4 {[%clk 00:03:03]} {[%emt 00:02:03]} c5 {[%clk 00:02:58]} {[%emt
00:00:06]} 2. Nf3 {[%clk 00:03:04]} Nc6 {[%clk 00:02:58]} {[%emt 00:00:03]} 3.
Bb5 {[%clk 00:03:05]} d6 {[%clk 00:02:47]} {[%emt 00:00:13]} 4. c3 {[%clk
00:02:53]} {[%emt 00:00:15]} Bd7 {[%clk 00:02:33]} {[%emt 00:00:15]} 5. O-O
{[%clk 00:02:49]} {[%emt 00:00:07]} Nf6 {[%clk 00:02:33]} 6. Re1 {[%clk
00:02:50]} a6 {[%clk 00:02:33]} {[%emt 00:00:03]} 7. Ba4 {[%clk 00:02:27]}
{[%emt 00:00:26]} b5 {[%clk 00:02:10]} {[%emt 00:00:25]} 8. Bc2 {[%clk
00:02:27]} {[%emt 00:00:02]} e5 {[%clk 00:02:09]} {[%emt 00:00:02]} 9. h3
{[%clk 00:02:28]} {[%emt 00:00:02]} Be7 {[%clk 00:02:10]} 10. d4 {[%clk
00:02:23]} {[%emt 00:00:07]} O-O {[%clk 00:02:09]} {[%emt 00:00:03]} 11. Be3
{[%clk 00:02:06]} {[%emt 00:00:19]} Rc8 {[%clk 00:01:50]} {[%emt 00:00:21]} 12.
dxc5 {[%clk 00:01:38]} {[%emt 00:00:30]} dxc5 {[%clk 00:01:50]} {[%emt
00:00:02]} 13. Nbd2 {[%clk 00:01:37]} {[%emt 00:00:02]} h6 {[%clk 00:01:44]}
{[%emt 00:00:08]} 14. Nf1 {[%clk 00:01:36]} {[%emt 00:00:04]} Qc7 {[%clk
00:01:43]} {[%emt 00:00:03]} 15. Ng3 {[%clk 00:01:32]} {[%emt 00:00:06]} Rfe8
{[%clk 00:01:37]} {[%emt 00:00:08]} 16. Qc1 {[%clk 00:01:11]} {[%emt 00:00:23]}
Bf8 {[%clk 00:01:33]} {[%emt 00:00:06]} 17. Nh4 {[%clk 00:01:09]} {[%emt
00:00:04]} Nd4 {[%clk 00:01:27]} {[%emt 00:00:08]} 18. Bb1 {[%clk 00:00:53]}
{[%emt 00:00:18]} Ne6 {[%clk 00:01:28]} 19. Nhf5 {[%clk 00:00:50]} {[%emt
00:00:05]} Nf4 {[%clk 00:01:29]} 20. Ne2 {[%clk 00:00:33]} {[%emt 00:00:20]}
Nxe2+ {[%clk 00:01:17]} {[%emt 00:00:13]} 21. Rxe2 {[%clk 00:00:34]} Bxf5
{[%clk 00:01:14]} {[%emt 00:00:06]} 22. exf5 {[%clk 00:00:35]} e4 {[%clk
00:01:14]} {[%emt 00:00:03]} 23. Bf4 {[%clk 00:00:31]} {[%emt 00:00:07]} Bd6
{[%clk 00:01:15]} 24. Bxd6 {[%clk 00:00:29]} {[%emt 00:00:03]} Qxd6 {[%clk
00:01:15]} 25. Qe3 {[%clk 00:00:24]} {[%emt 00:00:09]} Qe5 {[%clk 00:01:12]}
{[%emt 00:00:05]} 26. g4 {[%clk 00:00:17]} {[%emt 00:00:09]} b4 {[%clk
00:00:46]} {[%emt 00:00:28]} 27. Bc2 {[%clk 00:00:15]} {[%emt 00:00:05]} bxc3
{[%clk 00:00:23]} {[%emt 00:00:26]} 28. bxc3 {[%clk 00:00:16]} Nd5 {[%clk
00:00:24]} 29. Qxe4 {[%clk 00:00:09]} {[%emt 00:00:10]} Nxc3 {[%clk 00:00:25]}
30. Qxe5 {[%clk 00:00:05]} {[%emt 00:00:06]} Nxe2+ {[%clk 00:00:25]} 31. Kf1
{[%clk 00:00:03]} {[%emt 00:00:06]} Rxe5 {[%clk 00:00:26]} 32. Re1 {[%clk
00:00:03]} {[%emt 00:00:02]} Rce8 {[%clk 00:00:26]} {[%emt 00:00:02]} 33. Bd3
{[%clk 00:00:00]} {[%emt 00:00:02]} Ng3+ {[%clk 00:00:26]} 0-1